Workbook

Sheet Cover Page
D1: Add company logo
N2: Version 20.1
B8: Add photo
N13: Notes:
N14: This template may require adjustments by individual operators to meet specific reporting requirements as defined in the site Permit(s)
B29: Annual Performance Report 2020
B31: Permit EPR/AP3835SM
B33: Wolverhampton Energy from Waste Facility
B35: MES Environmental Ltd.
B39: Year: | C39: 2020
B41: Address: | C41: MES Environmental Ltd, Crown Street, Wolverhampton, WV1 1QB
B43: Tel: | C43: 01902 458888
B45: Email: | C45: mes@mesenvironmental.co.uk
B47: Prepared by: | C47: J Purnell | F47: Position: | G47: Environmental Manager
B49: Approved by: | C49: A Jackson | F49: Position: | G49: General Manager
B51: Version: | C51: 1
B53: Issue Date: | C53: 2021-01-28

Sheet Contents
A1: =+'Cover Page'!$B$29 -> Annual Performance Report 2020 | E1: =+'Cover Page'!$B$33 -> Wolverhampton Energy from Waste Facility
A3: Contents | K3: Notes:
B4: Subject | H4: Page | K4: Section references and Page nos. to be inserted
B5: Facility Information | H5: 4 | K5: Sections and Subjects may require adjustment by individual operators to meet specific reporting requirements as defined in the sites Permit(s)
B6: Operational Data | H6: 5
B7: Operational Summary | H7: 7
B8: Performance Form 1 | H8: 8
B9: Energy Form 1 | H9: 10
B10: Permit Compliance | H10: 11
B11: Improvements | H11: 12
B12: Public Liaison | H12: 13
B13: Residue Quality - Optional | H13: 14
B14: Emissions to Water | H14: 15
B15: Emissions to Air (periodically monitored) | H15: 16
B16: Emissions to Air (continuously monitored) | H16: 17
B17: Hydrogen Chloride emissions | H17: 19
B18: Sulphur Dioxide emissions | H18: 20
B19: Oxides of Nitrogen emissions | H19: 21
B20: Total Organic Carbon emissions | H20: 22
B21: Particulate Matter emissions | H21: 23
B22: Carbon Monoxide emissions | H22: 24
B23: Ammonia emissions | H23: 25
A26: Version Control
A27: Section | B27: Information | H27: Date
A34: Distribution
A35: Copy | B35: Name, Role | H35: No.
A44: This report is required under the Industrial Emissions Directive’s Article 55(2) requirements on reporting and public information on waste incineration plants and co-incineration plants, which require the operator to produce an annual report on the functioning and monitoring of the plant and make it available to the public.

Sheet Facility Info
A1: =+'Cover Page'!$B$29 -> Annual Performance Report 2020 | E1: =+'Cover Page'!$B$33 -> Wolverhampton Energy from Waste Facility
A3: Plant Description and Design | K3: Notes:
A5: The installation provides a sustainable method of waste disposal and recovery, predominantly for the area within the administrative boundary of Wolverhampton Metropolitan Borough Council, with smaller quantities of wastes accepted, where capacity and demand exists, from other local authorities within the general vicinity of the plant. With two combustion lines operating with a combined capacity of up to 14 tonnes per hour, the facility is able to process a maximum of around 118,000 tonnes of waste per year, providing an effective alternative for sending the waste to landfill. Heat produced during the incineration process is converted to electrical energy by generating steam in high-pressure boilers and expanding the steam through a steam turbine. When operating at full load, the plant will typically generate around 8 MW of electricity and, after satisfying its own power needs, exports approximately 7.1 MW of electricity to the grid. | K5: Include summary of plant design, design capacity, no. of combustion lines, electrical and heat capacity and any other general information that describes the facility, its location and purpose
A20: Summary of Operational Processes and Procedures
A22: The Plant is regulated under the terms of a Permit issued by the Environment Agency (reference AP3835SM) which contains conditions to ensure that the requirements of the Waste Incineration Directive are incorporated and will be met. MES Environmental operates all of its sites under an Integrated Management System certified to ISO 14001:2015 (environmental management), ISO 9001:2015 (quality management), and ISO 18001:2007 (health and safety management). The company also maintains the globally recognised RoSPA Gold standard award, all of which helps to ensure that the company operates responsibly, safely, and efficiently, with regard to all of its operations. In terms of plant operation, the incineration processes have been designed against the background of a detailed assessment of the prevailing environmental conditions at the site location, and are based upon the Best Available Technology (BAT) as detailed both in the original Authorisation application and the application for the Permit issued under the Pollution Prevention and Control (England and Wales) Regulations. These include, but are not limited to, the following: • Well proven process plant developed specifically for incineration of municipal solid wastes • Efficient, comprehensive process control and monitoring systems to ensure optimum conditions for complete combustion of the wastes and to minimise emissions from the processes • Operations confined within buildings under slight negative pressure in order to contain and minimise emissions such as dust and odour • Qualified and experienced operating and maintenance personnel to implement procedures to ensure that the required high standards are maintained. Operating and Maintenance Procedures are established according to an internationally recognised system of quality assurance • Multi-stage high efficiency flue gas cleaning systems comprising deNOx Selective Non-Catalytic Reduction (SNCR) for the removal of oxides of nitrogen, activated carbon and lime semi-dry acid gas scrubbing for controlling acid gas, dioxins/furans and mercury emissions • Final stage flue gas abatement for particulate materials using fabric filtration • Residues from the combustion process and from the flue gas cleaning system disposed of by approved means, maximising recycling wherever possible • Waste water from the process is neutralised and recycled as far as is practicable to minimise the quantities released to sewers • Provision of bunds or double skinned vessels for storage of fuel and chemicals in order to prevent accidental and inappropriate discharge to the public sewers and watercourse | K22: Include summary of key processes and procedures such as (but not limited to); waste reception, control rooms, grate, bed and boiler, energy & heat generation, cooling systems, residue management, emission controls, health and safety systems, maintenance

Sheet Operational Data
A1: =+'Cover Page'!$B$29 -> Annual Performance Report 2020 | E1: =+'Cover Page'!$B$33 -> Wolverhampton Energy from Waste Facility
A3: Operational Data | K3: Notes:
A4: Plant Size | B4: 118000 | D4: tonnes pa | E4: 0 | F4: MWth | G4: 8 | H4: MWe | K4: * - RDF to include SRF
A5: No. of combustion lines | B5: 2 | D5: No. of Turbines: | F5: 1 | K5: ** - CHP plants only
K6: 2020 updates include; heat in MWh, water in Litres, NCV in MJ/kg
A7: Waste types received | B7: Unit | C7: Q1 | D7: Q2 | E7: Q3 | F7: Q4 | G7: Year Total | H7: %
A8: Household / Local Authority | B8: tonnes | C8: 28610.71699 | D8: 28064.29738 | E8: 23484.54852 | F8: 29607.68943 | G8: =SUM(C8:F8) -> 109767.2523 | H8: =IF(G8>0,G8/$G$18,"-") -> 0.9592943179 | K8: Availabiity Definition: 'the availability of a line is to be calculated by the number of hours the line reported Continuously Monitored emission levels to the Regulator through the calendar year divided by the total number of hours in that year. The overall plant availability is calculated as the Mean of all lines in the plant. For clarity this includes periods of Other Than Normal Operating Conditions (OTNOC) and abnormal operation.' Rationale: The primary function of an Energy from Waste facility is the disposal of waste. It follows therefore that the availability of a plant is determined by the period of time a facility spends undertaking this activity.
A9: Commercial & Industrial | C9: 1690.283011 | D9: 1774.70262 | E9: 155.4514836 | F9: 1037.310565 | G9: =SUM(C9:F9) -> 4657.74768 | H9: 0.04070568215
A10: Hazardous | C10: 0 | D10: 0 | E10: 0 | F10: 0 | G10: 0 | H10: -
A11: Clinical | C11: 0 | D11: 0 | E11: 0 | F11: 0 | G11: 0 | H11: -
A12: Waste wood (biomass) | C12: 0 | D12: 0 | E12: 0 | F12: 0 | G12: 0 | H12: -
A13: Refuse Derived Fuel * - H'hold/LA | C13: 0 | D13: 0 | E13: 0 | F13: 0 | G13: =SUM(C13:F13) -> 0 | H13: -
A14: Refuse Derived Fuel * - C&I | C14: 0 | D14: 0 | E14: 0 | F14: 0 | G14: 0 | H14: -
A15: Other [Please specify] | C15: 0 | D15: 0 | F15: 0 | G15: 0 | H15: -
A16: Other [Please specify] | C16: 0 | D16: 0 | E16: 0 | F16: 0 | G16: 0 | H16: -
A17: Other [Please specify] | C17: 0 | D17: 0 | E17: 0 | F17: 0
A18: Total waste received | C18: =SUM(C8:C17) -> 30301 | D18: =SUM(D8:D17) -> 29839 | E18: =SUM(E8:E17) -> 23640 | F18: =SUM(F8:F17) -> 30645 | G18: =SUM(G8:G17) -> 114425 | H18: 1
A19: Rejected Waste | C19: 0 | D19: 0 | E19: 0 | F19: 0 | G19: =SUM(C19:F19) -> 0 | H19: =IF(G19>0,G19/$G$18,"-") -> -
A20: Unprocessed waste transferred out | C20: 0 | D20: 0 | E20: 759 | F20: 0 | G20: 759 | H20: =IF(G20>0,G20/$G$18,"-") -> 0.006633165829
A21: Total waste combusted | C21: =C18-SUM(C19:C20) -> 30301 | D21: =D18-SUM(D19:D20) -> 29839 | E21: 22881 | F21: 30645 | G21: =SUM(C21:F21) -> 113666 | H21: =IF(G21>0,G21/$G$18,"-") -> 0.9933668342
A23: Energy Usage / Export | B23: Unit | C23: Q1 | D23: Q2 | E23: Q3 | F23: Q4 | G23: Year Total | H23: KWh/te
A24: Power Generated | B24: MWh | C24: 13842 | D24: 11770 | E24: 8640 | F24: 12375 | G24: =SUM(C24:F24) -> 46627 | H24: =IF(G24>0,G24*1000/$G$21,"-") -> 410.2106171
A25: Power Exported | C25: 11524 | D25: 9630 | E25: 7086 | F25: 10347 | G25: =SUM(C25:F25) -> 38587 | H25: =IF(G25>0,G25*1000/$G$21,"-") -> 339.4770644
A26: Power Used on site | C26: 2318 | D26: 2140 | E26: 1554 | F26: 2028 | G26: =SUM(C26:F26) -> 8040 | H26: =IF(G26>0,G26*1000/$G$21,"-") -> 70.73355269
A27: Power Imported | C27: 9.4 | D27: 110.3 | E27: 385.3 | F27: 347.2 | G27: 852.2 | H27: =IF(G27>0,G27*1000/$G$21,"-") -> 7.497404677
A28: Parasitic Load | B28: % | C28: =IF(C24>0,1-C25/(C24+C27),"-") -> 0.1680263367 | D28: =IF(D24>0,1-D25/(D24+D27),"-") -> 0.1894144087 | E28: =IF(E24>0,1-E25/(E24+E27),"-") -> 0.2148737438 | F28: =IF(F24>0,1-F25/(F24+F27),"-") -> 0.1866972693 | G28: =IF(G24>0,1-G25/(G24+G27),"-") -> 0.1872862222
A29: Thermal Energy Produced ** | B29: MWh | C29: 0 | D29: 0 | E29: 0 | F29: 0 | G29: =SUM(C29:F29) -> 0 | H29: =IF(G29>0,G29*1000/$G$18,"-") -> -
A30: Thermal Energy Exported ** | C30: 0 | D30: 0 | E30: 0 | F30: 0 | G30: 0 | H30: -
A31: R1 value | C31: n/a | G31: Design / Operational / n/a
A33: Waste Disposal & Recovery | B33: Unit | C33: Q1 | D33: Q2 | E33: Q3 | F33: Q4 | G33: Year Total | H33: % inputs
A34: APC Residues - produced | B34: tonnes | C34: 968 | D34: 903 | E34: 739 | F34: 981 | G34: =SUM(C34:F34) -> 3591 | H34: =IF(G34>0,G34/$G$21,"-") -> 0.03159256066
A35: IBA - produced | C35: 4574 | D35: 5268 | E35: 4120 | F35: 4835 | G35: 18797 | H35: =IF(G35>0,G35/$G$21,"-") -> 0.1653704714
A36: Metals recycling | C36: 395 | D36: 425 | E36: 327 | F36: 438 | G36: =SUM(C36:F36) -> 1585 | H36: =IF(G36>0,G36/$G$21,"-") -> 0.01394436331
A37: Other | C37: 0 | D37: 0 | E37: 0 | F37: 0 | G37: =SUM(C37:F37) -> 0 | H37: =IF(G37>0,G37/$G$18,"-") -> -
A38: Other | C38: 0 | D38: 0 | E38: 0 | F38: 0 | G38: 0 | H38: =IF(G38>0,G38/$G$18,"-") -> -
A39: Other | C39: 0 | D39: 0 | E39: 0 | F39: 0 | G39: 0 | H39: =IF(G39>0,G39/$G$18,"-") -> -
A41: Raw Material Usage | B41: Unit | C41: Q1 | D41: Q2 | E41: Q3 | F41: Q4 | G41: Year Total | H41: kg or Ltr /te
A42: Mains Water | B42: ltrs | C42: 11064 | D42: 11639 | E42: 9653 | F42: 10351 | G42: =SUM(C42:F42) -> 42707 | H42: =IF(G42>0,G42/$G$21,"-") -> 0.3757236113
A43: Other Water | B43: ltrs | C43: 0 | D43: 0 | E43: 0 | F43: 0 | G43: 0 | H43: -
A44: Ammonia | B44: kgs | C44: 0 | D44: 0 | E44: 0 | F44: 0 | G44: 0 | H44: -
A45: Urea | B45: kgs | C45: 98000 | D45: 83000 | E45: 72000 | F45: 73000 | G45: =SUM(C45:F45) -> 326000 | H45: 2.868052012
A46: Activated Carbon | B46: kgs | C46: 1500 | D46: 500 | E46: 500 | F46: 0 | G46: 2500 | H46: 0.0219942639
A47: Lime / hydrated lime | B47: kgs | C47: 228320 | D47: 257220 | E47: 226780 | F47: 286000 | G47: 998320 | H47: 8.782925413
A48: Fuel oil | B48: ltrs | C48: 22840 | D48: 21493 | E48: 36654 | F48: 27615 | G48: 108602 | H48: 0.9554484191
A49: Gas | B49: cf | C49: 0 | D49: 0 | E49: 0 | F49: 0 | G49: 0
A50: Other | C50: 0 | D50: 0 | E50: 0 | F50: 0 | G50: 0
A52: Summary | B52: Line/Unit | C52: Q1 | D52: Q2 | E52: Q3 | F52: Q4 | G52: Year Total | J52: Hrs in year
A53: Availability of waste combustion by line, hrs | B53: 1 | C53: 2181 | D53: 1959.5 | E53: 1733 | F53: 2124.5 | G53: =SUM(C53:F53) -> 7998 | H53: 0.9105 | J53: 8760
B54: 2 | C54: 2073 | D54: 2179 | E54: 1682.5 | F54: 2167.5 | G54: 8102 | H54: 0.9224
A58: Overall Availability, mean avg. of all lines, hrs | C58: =AVERAGE(C53:C54) -> 2127 | D58: =AVERAGE(D53:D54) -> 2069.25 | E58: 1707.75 | F58: 2146 | G58: =AVERAGE(G53:G54) -> 8050 | H58: =AVERAGE(H53:H54) -> 0.91645
A59: Hours of turbine operations, hrs | B59: 1 | C59: 2173 | D59: 2089 | E59: 1506 | F59: 1836.5 | G59: 7604.5 | H59: 0.8657
A62: Net Calorific Value of waste | B62: MJ/kg | C62: 8 | D62: 7.81 | E62: 7.91 | F62: 7.92 | H62: -
A63: Abnormal Events | B63: qty. | C63: 0 | D63: 0 | E63: 1 | F63: 0 | G63: 1 | H63: =IF(G63>0,"yes","no") -> yes
A64: Abnormal operation | B64: hours | C64: 0 | D64: 0 | E64: 0.5 | F64: 0 | G64: 0.5 | H64: =+(G64)/J53 -> 5.707762557e-05
A65: Permit Breaches | B65: qty. | C65: 4 | D65: 3 | E65: 4 | F65: 1 | G65: 12 | H65: =IF(G65>0,"yes","no") -> yes

Sheet Operational Summary
A1: =+'Cover Page'!$B$29 -> Annual Performance Report 2020 | E1: =+'Cover Page'!$B$33 -> Wolverhampton Energy from Waste Facility
A3: Summary of Plant Operations and Maintenance during the reporting year | K3: Notes:
A5: 2020 has been a challenging year with direct and indirect effects of COVID-19. During the first lockdown period, the main challenges were with the availability of parts and service suppliers. Towards the end of 2020 the problems have been with our own staff, both suffering infections or self-isolating due to infection of family members. 2020 statutory inspections were delayed due to the pandemic and were finally completed in September. There were a few additional minor shutdowns for tube leaks and grate repairs but overall availability for the year was still above 90%. Significant additional works completed during the annual shutdown were a major overhaul of the generator, a larger than usual program of tube replacements on boiler 2 and the replacement of a complete fly ash screw conveyor. Significant works completed outside the annual shutdown were the overhaul of the tap changer on the 33/11KV transformer, overhaul of the steam turbine governor linkages, recovering of the tipping hall roof, the replacement of the baghouse cladding and major repairs to No.2 ACC fan drive. There has been a significant amount of work done across the plant on health & safety projects including the installation of additional power supplies to reduce the amount of trailing leads during shutdowns, the installation of a fume extraction system for use by welders during boiler internal repairs plus additional fixed ventilation for general fresh air supply in the same area. A program of fitting spring-loaded gates instead of chains on vertical ladders has been commenced and finally a new, larger permit office has been created which is outside the main office block area and prevents the build-up of crowds in the narrow corridors. | K5: Include summary of key operational and/or mainteanance activity undertaken in the year, such as any major component upgrades and/or replacements
A29: Summary of Residue Handling for the reporting year
A31: There are two main sources of residue that arise from the operation of the plant; Incinerator Bottom ash (IBA) (which also includes ferrous metals discharged within the ash), and residues from the flue gas treatment system - known as Air Pollution Control residue (APCr). Residues from the flue gas treatment process (APCr) are discharged into an enclosed system which feed into double-skinned heavy-duty bags prior to removal from site for controlled treatment and disposal. These residues account for around 5% of the total weight of all refuse processed by the facility. The bottom ash produced by the site represents around 10% of the original volume of the refuse processed, and around 20% of its weight. Bottom ash residues are discharged from the lower end of each grate into a water filled ash discharger, where it is quenched and then ejected onto a conveyor system. Larger items are screened out and ferrous metals are removed via magnetic separation. The resulting material is stored in the storage bunkers prior to removal from site for recycling - the storage capacity for bottom ash residues and separated ferrous metals is sufficient to ensure 4 days storage. Collections for delivery to further processing or treatment sites are made on Mondays to Fridays and are scheduled to ensure sufficient storage capacity is maintained at all times. Collections are available at weekends if operational conditions require this facility. Bottom ash is now widely used in the UK and Europe as a substitute for valuable primary aggregate materials in the construction of roads and embankments. Bottom ash from MES Environmental is currently being reprocessed, with additional ferrous and trace metals being removed, and the remaining material being further processed into usable aggregate in a zero to landfill process. | K31: Include in here a summary of residue handling regimes and destinations

Sheet Perf. Form 1
A1: =+'Cover Page'!C39 -> 2020 | B1: Annual Reporting Performance Form 1
A3: =+'Cover Page'!B31 -> Permit EPR/AP3835SM | F3: Operator: | G3: MES Environmental
A4: Facility: | B4: =+'Cover Page'!B33:I33 -> Wolverhampton Energy from Waste Facility | F4: Form: | G4: Performance 1
A6: Reporting Period from: | D6: 2020-01-01 | F6: to: | G6: 2020-12-31
A8: =+A1 -> 2020 | B8: Annual Reporting of Waste Disposal and Recovery
A9: Waste Description | C9: Disposal Route(s) | E9: Disposal Tonnes | G9: Recovery Tonnes | I9: % / tonne of waste incinerated
A10: 1) Hazardous Wastes
A11: APC Residues | C11: D13 | E11: ='Operational Data'!G34 -> 3591 | I11: =IF((E11+G11)>0,(E11+G11)/'Operational Data'!$G$21, "-") -> 0.03159256066
A12: IBA | I12: =IF((E12+G12)>0,(E12+G12)/'Operational Data'!$G$21, "-") -> -
I13: =IF((E13+G13)>0,(E13+G13)/'Operational Data'!$G$21, "-") -> -
I14: =IF((E14+G14)>0,(E14+G14)/'Operational Data'!$G$21, "-") -> -
A15: Total Hazardous Waste | E15: =SUM(E11:F14) -> 3591 | G15: =SUM(G11:H14) -> 0 | I15: =IF((E15+G15)>0,(E15+G15)/'Operational Data'!$G$21, "-") -> 0.03159256066
A17: 2) Non-Hazardous Wastes
A18: IBA | C18: R04 | G18: ='Operational Data'!G35 -> 18797 | I18: =IF((E18+G18)>0,(E18+G18)/'Operational Data'!$G$21, "-") -> 0.1653704714
A19: Ferrous Metal | C19: R04 | G19: ='Operational Data'!G36 -> 1585 | I19: =IF((E19+G19)>0,(E19+G19)/'Operational Data'!$G$21, "-") -> 0.01394436331
A20: Process Water | E20: 67 | I20: =IF((E20+G20)>0,(E20+G20)/'Operational Data'!$G$21, "-") -> 0.0005894462724
I21: =IF((E21+G21)>0,(E21+G21)/'Operational Data'!$G$21, "-") -> -
I22: =IF((E22+G22)>0,(E22+G22)/'Operational Data'!$G$21, "-") -> -
A23: Total Non-Hazardous Waste | E23: =SUM(E18:F22) -> 67 | G23: =SUM(G18:H22) -> 20382 | I23: =IF((E23+G23)>0,(E23+G23)/'Operational Data'!$G$21, "-") -> 0.179904281
A24: TOTAL WASTE | E24: =+E23+E15 -> 3658 | G24: =+G23+G15 -> 20382 | I24: =IF((E24+G24)>0,(E24+G24)/'Operational Data'!$G$21, "-") -> 0.2114968416
A26: Operator’s comments :
A31: =+A1 -> 2020 | B31: Annual Reporting of Water and Other Raw Material Usage
A32: Raw Material | E32: Usage | G32: Unit | H32: Specific Useage | J32: Unit
A33: Mains Water | E33: =+'Operational Data'!G42 -> 42707 | G33: m3 | H33: =IF(E33>0,E33/'Operational Data'!$G$21,"-") -> 0.3757236113 | J33: m3/te
A34: Total Water | E34: =+'Operational Data'!G43+'Operational Data'!G42 -> 42707 | G34: m3 | H34: =IF(E34>0,E34/'Operational Data'!$G$21,"-") -> 0.3757236113 | J34: m3/te
A35: Urea / Ammonia | E35: =+'Operational Data'!G45 -> 326000 | G35: kg | H35: =IF(E35>0,E35/'Operational Data'!$G$21,"-") -> 2.868052012 | J35: kg/te
A36: Activated Carbon | E36: =+'Operational Data'!G46 -> 2500 | G36: kg | H36: =IF(E36>0,E36/'Operational Data'!$G$21,"-") -> 0.0219942639 | J36: kg/te
A37: Lime / hydrated lime / Sodium Bicarb. | E37: =+'Operational Data'!G47 -> 998320 | G37: kg | H37: =IF(E37>0,E37/'Operational Data'!$G$21,"-") -> 8.782925413 | J37: kg/te
A39: Operator’s comments :
A43: =+A31 -> 2020 | B43: Annual Reporting of other performance indicators
A44: Parameter | C44: Results by Line
C45: A1 | D45: A2 | E45: A3 | F45: A4 | G45: A5 | I45: Turbine 1 | J45: Turbine 2
A46: Operating hours for the year, hours | C46: ='Operational Data'!G53 -> 7998 | D46: ='Operational Data'!G54 -> 8102 | I46: ='Operational Data'!G59 -> 7604.5
A47: Number of periods of abnormal operation, qty. | C47: 1 | D47: 0
A48: Cumulative hours of abnormal operation for this year, hours | C48: 0.5 | D48: 0
A50: Operator’s comments :
A54: Signed: | B54: J Purnell | G54: Date: | H54: 2021-01-31

Sheet Energy Form 1
A1: =+'Cover Page'!C39 -> 2020 | B1: Annual Reporting of Energy Usage/Export
A3: =+'Cover Page'!B31 -> Permit EPR/AP3835SM | F3: Operator: | G3: MES Environmental
A5: Facility: | B5: =+'Cover Page'!B33:I33 -> Wolverhampton Energy from Waste Facility | F5: Form: | G5: Energy 1
A7: Reporting Period from: | D7: =+'Perf. Form 1'!D6:E6 -> 2020-01-01 | F7: to: | G7: =+'Perf. Form 1'!G6:H6 -> 2020-12-31
A9: Energy Source | D9: Energy Usage | F9: Unit | G9: Specific Useage (KWh/tonne incinerated
A10: Electricity Produced | D10: =+'Operational Data'!G24 -> 46627 | F10: MWh | G10: =+'Operational Data'!H24 -> 410.2106171
A11: Electricity Imported | D11: =+'Operational Data'!G27 -> 852.2 | F11: MWh | G11: =+'Operational Data'!H27 -> 7.497404677
A12: Electricity Exported | D12: =+'Operational Data'!G25 -> 38587 | F12: MWh | G12: =+'Operational Data'!H25 -> 339.4770644
A13: Gas Oil | F13: tonnes
A14: Steam/hot water exported | D14: =+'Operational Data'!G30 -> 0 | F14: GWh | G14: =+'Operational Data'!H30 -> -
A18: Operator’s comments :
A29: Signed: | B29: J Purnell | G29: Date: | H29: 2021-01-31

Sheet Permit Compliance
A1: =+'Cover Page'!$B$29 -> Annual Performance Report 2020 | E1: =+'Cover Page'!$B$33 -> Wolverhampton Energy from Waste Facility
A3: Summary of Permit Compliance
A5: Compliance with permit limits for continuously monitored pollutants
A7: The plant met its emission limits as shown in the table below:
A8: Substance | C8: Percentage time compliant during operation | L8: Notes:
C9: Half-hourly limit | F9: Daily limit | L9: Report to 2 decimal places, i.e. xx.xx% Please provide a brief summary of each notification or non-compliance in the table (rather than just referring to notifications that were sent to the Regulator).
A10: Particulates | C10: 1 | F10: 1
A11: Oxides of nitrogen | C11: 1 | F11: 0.9973
A12: Sulphur dioxide | C12: 1 | F12: 1
A13: Carbon monoxide | C13: 1 | F13: 1
A14: Total organic carbon | C14: 0.9997 | F14: 1
A15: Hydrogen chloride | C15: 0.9997 | F15: 0.9973
A16: Hydrogen fluoride | C16: 1 | F16: 1
A17: Average | C17: 0.9999 | F17: 0.9992
A19: Summary of any notifications or non-compliances under the permit
A20: Date | B20: Summary of notification or non-compliance [including Line/Reference] | E20: Reason | H20: Measures taken to prevent reoccurrence
A21: 2020-01-17 | B21: A1, HCl, Half hourly limit | E21: Rogue waste element | H21: Increased lime supply
A22: 2020-03-04 | B22: A1, VOC, Half hourly limit | E22: Maintenance activity | H22: Procedure modified
A23: 2020-03-21 | B23: A1, Nox, Daily limit | E23: Poor waste | H23: Increased urea flow
A24: 2020-03-22 | B24: A1, HCl, Daily limit | E24: System blockage | H24: Used stby, repaired unit
A25: 2020-05-02 | B25: A1, VOC, Half hourly limit | E25: Rogue waste element | H25: Burners ignited
A26: 2020-06-19 | B26: A2, HCl, Half hourly limit | E26: Rogue waste element | H26: Increased lime supply
A27: 2020-06-27 | B27: A1, VOC, Half hourly limit | E27: Faulty O2 probe | H27: Equipment repaired
A28: 2020-08-07 | B28: A1, HCl, Half hourly limit | E28: Rogue waste element | H28: Increased lime supply
A29: 2020-08-13 | B29: A1, HCl, Half hourly limit | E29: Rogue waste element | H29: Increased lime supply
A30: 2020-08-14 | B30: A2, VOC, Half hourly limit | E30: Wet waste | H30: Better waste mixing
A31: 2020-08-21 | B31: A1, VOC, Half hourly limit | E31: Wet waste | H31: Better waste mixing
A32: 2020-11-03 | B32: A1, HCl, Half hourly limit | E32: Rogue waste element | H32: Increased lime supply
A34: Summary of any complaints received and actions to taken to resolve them.
A35: Date | B35: Summary of complaint [including Line/Reference] | E35: Reason * | H35: Measures taken to prevent reoccurrence
E41: * including whether substantiated by the operator or the EA

Sheet Improvements
A1: =+'Cover Page'!$B$29 -> Annual Performance Report 2020 | E1: =+'Cover Page'!$B$33 -> Wolverhampton Energy from Waste Facility
A3: Summary of Plant Improvements
A5: Summary of any efficiency improvements that have been completed within the year.
A6: LED lamp replacement and an enhanced cleaning regime on the ACC remain ongoing projects. Improvements in the steam turbine drainage system and replacement of some faulty valves on have resulted in improved performance from the air ejectors. This combined with a robust programme of air leak detection and repair has led to improved vacuum, which improves output from the turbine. Wastewater recycling and reuse has been further improved with a new and improved filtration system combined with improved control and management of the system by the Ops staff. New flowmeters have been fitted on the lime system dilution vessels and the lime turbine feeds, which will give more accurate control on lime dosing rates.
A16: Summary of any permit improvement conditions that have been completed within the year and the resulting environmental benefits.
A17: All permit improvement conditions were completed prior to 2020.
A27: Summary of any changes to the plant or operating techniques which required a variation to the permit and a summary of the resulting environmental impact.
A28: No permit variations were required during 2020.
A38: Summary of any other improvements made to the plant or planned to be made and a summary of the resulting environmental benefits.
A39: The lime turbine disc acid cleaning bath has been decommissioned and replaced with an ultrasonic cleaning bath – reduced use of chemicals plus a significant improvement in the life expectancy of the lime turbine discs. Repairs & upgrades to the lime milk preparation equipment to improve reliability and reduce leakage New isolating valves and improved fan blowers have been fitted to the activated carbon dosing system, which has reduced activated carbon dust leakage. Civil works in the Urea dosing area to reduce the ingress of damp and improve reliability of the system Both standby dust probes have been replaced with new upgraded units Stream 2 FID replaced with new unit – heated pump upgrade carried out on the standby FID New MIR fitted to Stream 1 and a reconditioned MIR fitted in stream 2 The above analyser improvements combined with those carried out in 2019 have seen a marked reduction in call outs since the upgrades were carried out. No.1 boiler air heater has developed a leak so replacement is planned for replacement during the 2021 annual shutdown. This should see similar improvements in underfire air temperatures to those seen on boiler 2

Sheet Public Liasion
A1: =+'Cover Page'!$B$29 -> Annual Performance Report 2020 | E1: =+'Cover Page'!$B$33 -> Wolverhampton Energy from Waste Facility
A3: Details of Public & Stakeholder Liasion
A5: Summary of events held during the reporting year.
A6: Date | C6: Description
A7: Across 2020 | C7: MESE conducts monthly meetings with its core stakeholders in order discuss operational, health and safety, and environmental performance.
A16: List of events planned for next year
A17: Date | C17: Description
A18: 2021 | C18: MESE will continue to meet with its core stakeholders on a monthly basis.
A29: If you wish to be involved in the public liasion programme, please contact _________________

Sheet Residue Quality
A1: =+'Cover Page'!$B$29 -> Annual Performance Report 2020 | E1: =+'Cover Page'!$B$33 -> Wolverhampton Energy from Waste Facility
A3: Residue Quality Monitoring Requirements
A5: Summary of monitoring undertaken and compliance
A6: 24 sample IBA monitoring scheme undertaken as per the ESA protocol, All samples below the applicable hazard threshold.
A8: 2 IBA samples taken direct from each unit's ash discharger and subjected to full hazard assessment against WM3 - both samples found to be below the hazard thresholds for all applicable hazard categories
A10: Quarterly APCr monitoring performed.
A13: Commentary on any specific events
A14: Date & Event | C14: Description
A27: Residue Quality Monitoring Results
A28: Parameter (unit) | C28: Limit | D28: Normal Operation
D29: Bottom ash | F29: APC Residues
A30: Loss on Ignition (average %) | C30: <5% | D30: 2.68
A31: Total Organic Carbon (average %) | C31: <3% | D31: 0.6
A32: No. of Assessments Undertaken | C32: --- | D32: 24
A33: No. of Hazardous Results | C33: --- | D33: 0
A35: Comments :
A36: The Loss on Ignition and TOC values above represent the average observed over all samples taken during 2020 (of which all fell within the 5% and 3% limits respectively).

Sheet Water
A1: =+'Cover Page'!$B$29 -> Annual Performance Report 2020 | E1: =+'Cover Page'!$B$33 -> Wolverhampton Energy from Waste Facility
A3: Emissions to Water
A5: Summary of monitoring undertaken and compliance
A6: Annual sample taken and analysed. All results below limits given in discharge consent.
A8: Waste water arising from the process is neutralised and recycled as far as is practicible in order to minimise the quantity released to sewer.
A13: Commentary on any specific events
A14: Date & Event | C14: Description
A22: Emissions to Water / Sewer
A23: Parameter | D23: Monitoring Frequency | G23: Limit | H23: Target | I23: Max. | J23: Average
A24: pH | D24: Continuous | G24: 6 - 10 | H24: 6 - 10 | I24: 9.2 | J24: 7.92
A25: Total Suspended Solids (TSS) | D25: Annual | G25: 400 mg/L | H25: <400 mg/L | I25: 53.6 | J25: 53.6
A26: Chemical Oxygen Demand (COD) | D26: Annual | G26: 800 mg/L | H26: <800 mg/L | I26: 29 | J26: 29
A27: Zinc | D27: Annual | G27: 5 mg/L | H27: <5 mg/L | I27: 0.109 | J27: 0.109
A28: Sulphate | D28: Annual | G28: 1000 mg/L | H28: <1000 mg/L | I28: 53.6 | J28: 53.6
A29: Phosphorus | D29: Annual | G29: 25 mg/L | H29: <25 mg/L | I29: 1.09 | J29: 1.09
A30: Oil | D30: Annual | G30: nil | H30: nil | I30: nil | J30: nil

Sheet Air (periodic)
A1: =+'Cover Page'!$B$29 -> Annual Performance Report 2020 | E1: =+'Cover Page'!$B$33 -> Wolverhampton Energy from Waste Facility
A3: Emissions to Air (periodically monitored)
A5: Summary of monitoring undertaken, standards used and compliance | M5: Notes:
A6: Periodic monitoring of the substances listed below are undertaken as per the conditions listed in the permit. | M6: Template may require adjustment for any bespoke monitoring requirements of permit.
A9: Results of emissions to air that are periodically monitored
A10: Substance | C10: Ref. Period | D10: Emission Limit Value | F10: Average | M10: User to add additional tables as necessary, depending on whether quarterly or bi-annual reporting is required for the compliance year
F11: A1 | G11: A2 | H11: A3 | I11: A4 | J11: A5
A12: Hydrogen fluoride | C12: 1 hr | D12: 2 mg/m3 | F12: 0.045 | G12: 0.02
A13: Cd and Th and their compounds | C13: 6-8hrs | D13: 0.05 mg/m3 | F13: 0.001725 | G13: 0.001175
A14: Hg and its compounds | C14: 6-8hrs | D14: 0.05 mg/m3 | F14: 0.005625 | G14: 0.0022
A15: Sb, As, Pb, Cr, Co, Cu, Mn, Ni, V and their compounds | C15: 6-8hrs | D15: 0.5 mg/m3 | F15: 0.0692 | G15: 0.054675
A16: Dioxins & Furans (I-TEQ) | C16: 6-8hrs | D16: 0.1 ng/m3 | F16: 0.05555 | G16: 0.0179
A17: PCBs (WHO-TEQ Humans / Mammals) | C17: 6-8hrs | D17: None set ng/m3 | F17: 0.00285 | G17: 0.00085
A18: PCBs (WHO-TEQ Fish) | C18: 6-8hrs | D18: None set ng/m3 | F18: 0.0002 | G18: 6e-05
A19: PCBs (WHO-TEQ Birds) | C19: 6-8hrs | D19: None set ng/m3 | F19: 0.0061 | G19: 0.00215
A20: Dioxins & Furans (WHO-TEQ Humans / Mammals) | C20: 6-8hrs | D20: None set ng/m3 | F20: 0.0516 | G20: 0.01655
A21: Dioxins & Furans (WHO-TEQ Fish) | C21: 6-8hrs | D21: None set ng/m3 | F21: 0.0587 | G21: 0.0191
A22: Dioxins & Furans (WHO-TEQ Birds) | C22: 6-8hrs | D22: None set ng/m3 | F22: 0.1034 | G22: 0.03115
A23: Anthanthrene | C23: 6-8hrs | D23: None set µg/m3 | F23: 0.01315 | G23: 0.0128
A24: Benzo(a)anthracene | C24: 6-8hrs | D24: None set µg/m3 | F24: 0.0148 | G24: 0.0168
A25: Benzo(a)pyrene | C25: 6-8hrs | D25: None set µg/m3 | F25: 0.01315 | G25: 0.0128
A26: Benzo(b)fluoranthene | C26: 6-8hrs | D26: None set µg/m3 | F26: 0.01355 | G26: 0.0135
A27: Benzo(b)naptho(2,1-d) thiophene | C27: 6-8hrs | D27: None set µg/m3 | F27: 0.0189 | G27: 0.0179
A28: Benzo(c)phenanthrene | C28: 6-8hrs | D28: None set µg/m3 | F28: 0.0181 | G28: 0.02195
A29: Benzo(ghi)perylene | C29: 6-8hrs | D29: None set µg/m3 | F29: 0.01315 | G29: 0.01645
A30: Benzo(k)fluoranthene | C30: 6-8hrs | D30: None set µg/m3 | F30: 0.01315 | G30: 0.0128
A31: Cholanthrene | C31: 6-8hrs | D31: None set µg/m3 | F31: 0.01685 | G31: 0.01645
A32: Chrysene | C32: 6-8hrs | D32: None set µg/m3 | F32: 0.0144 | G32: 0.15405
A33: Cyclopenta(cd)pyrene | C33: 6-8hrs | D33: None set µg/m3 | F33: 0.0181 | G33: 0.0179
A34: Dibenzo(ai)pyrene | C34: 6-8hrs | D34: None set µg/m3 | F34: 0.02055 | G34: 0.0201
A35: Dibenzo(ah)anthracene | C35: 6-8hrs | D35: None set µg/m3 | F35: 0.01315 | G35: 0.0128
A36: Fluoranthene | C36: 6-8hrs | D36: None set µg/m3 | F36: 0.06405 | G36: 0.53255
A37: Indeno(123-cd) pyrene | C37: 6-8hrs | D37: None set µg/m3 | F37: 0.01315 | G37: 0.0128
A38: Naphthalene | C38: 6-8hrs | D38: None set µg/m3 | F38: 3.15035 | G38: 3.9683
A39: Comments :

Sheet Air (CEMS)
A1: =+'Cover Page'!$B$29 -> Annual Performance Report 2020 | I1: =+'Cover Page'!$B$33 -> Wolverhampton Energy from Waste Facility
A3: Emissions to Air (continously monitored)
P4: Notes:
A5: Summary of monitoring undertaken, standards used and compliance | P5: Template may require adjustment for any bespoke monitoring requirements of permit
A6: The substances below are continuously monitored by the plant. Average and maximum emissions are recorded below. | P6: Report to 2 decimal places, i.e. xx.xx%
A11: Results of emissions to air that are continuously monitored (maximum and average values for each line)
A12: Substance | B12: Reference Period | C12: Emission Limit Value | D12: A1 | F12: A2 | H12: A3 | J12: A4 | L12: A5
D13: Max. | E13: Avg. | F13: Max. | G13: Avg. | H13: Max. | I13: Avg. | J13: Max. | K13: Avg. | L13: Max. | M13: Avg.
A14: Oxides of nitrogen | B14: Daily mean | C14: 200 mg/m3 | D14: =NOx!O19 -> 210 | E14: =NOx!N19 -> 183.6666667 | F14: =NOx!O34 -> 198 | G14: =NOx!N34 -> 184.4166667
B15: ½ hourly mean | C15: 400 mg/m3 | D15: =NOx!M19 -> 372 | E15: =NOx!L19 -> 183.6666667 | F15: =NOx!M34 -> 396 | G15: =NOx!L34 -> 184.4166667
A16: Particulates | B16: Daily mean | C16: 10 mg/m3 | D16: =Particulates!O19 -> 7 | E16: =Particulates!N19 -> 0.6233333333 | F16: =Particulates!O34 -> 2 | G16: =Particulates!N34 -> 0.08833333333
B17: ½ hourly mean | C17: 30 mg/m3 | D17: =Particulates!M19 -> 21 | E17: =Particulates!L19 -> 0.6233333333 | F17: =Particulates!M34 -> 4 | G17: =Particulates!L34 -> 0.08833333333
A18: Total Organic Carbon | B18: Daily mean | C18: 10 mg/m3 | D18: =TOC!O19 -> 4 | E18: =TOC!N19 -> 0.5833333333 | F18: =TOC!O34 -> 5 | G18: =TOC!N34 -> 0.3333333333
B19: ½ hourly mean | C19: 20 mg/m3 | D19: =TOC!M19 -> 25 | E19: =TOC!L19 -> 0.5833333333 | F19: =TOC!M34 -> 23 | G19: =TOC!L34 -> 0.3333333333
A20: Hydrogen chloride | B20: Daily mean | C20: 10 mg/m3 | D20: =HCl!O19 -> 13 | E20: =HCl!N19 -> 6.75 | F20: =HCl!O34 -> 10 | G20: =HCl!N34 -> 7.333333333
B21: ½ hourly mean | C21: 60 mg/m3 | D21: =HCl!M19 -> 196 | E21: =HCl!L19 -> 6.75 | F21: =HCl!M34 -> 100 | G21: =HCl!L34 -> 7.333333333
A22: Sulphur dioxide | B22: Daily mean | C22: 50 mg/m3 | D22: ='SO2'!O19 -> 39 | E22: ='SO2'!N19 -> 24.83333333 | F22: ='SO2'!O34 -> 33 | G22: ='SO2'!N34 -> 22.91666667
B23: ½ hourly mean | C23: 200 mg/m3 | D23: ='SO2'!M19 -> 102 | E23: ='SO2'!L19 -> 24.83333333 | F23: ='SO2'!M34 -> 184 | G23: ='SO2'!L34 -> 22.91666667
A24: Carbon monoxide | B24: Daily mean | C24: 50 mg/m3 | D24: ='CO 95% 10 min'!Q19 -> 30 | E24: ='CO 95% 10 min'!P19 -> 8 | F24: ='CO 95% 10 min'!Q34 -> 35 | G24: ='CO 95% 10 min'!P34 -> 14.41666667
B25: 95%ile 10-min avg * | C25: 150 mg/m3 * | D25: ='CO 95% 10 min'!O19 -> 196 | E25: ='CO 95% 10 min'!N19 -> 8 | F25: ='CO 95% 10 min'!O34 -> 176 | G25: ='CO 95% 10 min'!N34 -> 14.41666667
A26: Ammonia | B26: Daily mean | C26: No limit set | D26: ='NH3'!O19 -> 21 | E26: ='NH3'!N19 -> 2.666666667 | F26: ='NH3'!O34 -> 10 | G26: ='NH3'!N34 -> 2.666666667
A27: * = delete or amend as appropriate
A28: Comments :

Sheet HCl
A1: =+'Cover Page'!$B$29 -> Annual Performance Report 2020 | E1: =+'Cover Page'!$B$33 -> Wolverhampton Energy from Waste Facility
A3: Monitoring of Hydrogen Chloride emissions | D3: Whole Installation | G3: See Notes in Cell Q3 | J3: =+A3 -> Monitoring of Hydrogen Chloride emissions | N3: Per Combustion Line | Q3: Notes:
Q4: User to add logic to complete Whole installation, Table A5:G18. From the data in Per Combustion Line, Table J6:O79, subject to No. of lines installed
A5: mg/Nm3 | B5: 1/2 Hourly Reference Periods | E5: Daily Reference Periods
A6: =+'Cover Page'!C39 -> 2020 | B6: 1/2 hourly HCl ELV | C6: Monthly 1/2 hourly mean | D6: Highest 1/2 hourly maximum | E6: Daily HCl ELV | F6: Monthly daily mean | G6: Highest daily maximum | J6: =+A6 -> 2020 | K6: mg/Nm3 | L6: Monthly 1/2 hourly mean | M6: Monthly 1/2 hourly maximum | N6: Monthly daily mean | O6: Monthly daily maximum
A7: Jan | B7: 60 | C7: =AVERAGE(L7,L22) -> 6 | D7: =MAX(M7,M22) -> 61 | E7: 10 | F7: =AVERAGE(N7,N22) -> 6 | G7: =MAX(O7,O22) -> 7 | J7: A1 | K7: Jan | L7: 6 | M7: 61 | N7: 6 | O7: 7
A8: Feb | B8: 60 | C8: =AVERAGE(L8,L23) -> 7.5 | D8: =MAX(M8,M23) -> 59 | E8: 10 | F8: =AVERAGE(N8,N23) -> 7.5 | G8: =MAX(O8,O23) -> 9 | K8: Feb | L8: 7 | M8: 25 | N8: 7 | O8: 8
A9: Mar | B9: 60 | C9: 7.5 | D9: 196 | E9: 10 | F9: 7.5 | G9: 13 | K9: Mar | L9: 7 | M9: 196 | N9: 7 | O9: 13 | Q9: Whole Installation table A5:G18:
A10: Apr | B10: 60 | C10: 7.5 | D10: 36 | E10: 10 | F10: 7.5 | G10: 8 | K10: Apr | L10: 7 | M10: 36 | N10: 7 | O10: 8 | Q10: Mean: for 1/2 hourly and daily periods calculate mean of values across all operational combustion lines for the month
A11: May | B11: 60 | C11: 7 | D11: 45 | E11: 10 | F11: 7 | G11: 8 | K11: May | L11: 7 | M11: 26 | N11: 7 | O11: 8
A12: Jun | B12: 60 | C12: 6.5 | D12: 100 | E12: 10 | F12: 6.5 | G12: 9 | K12: Jun | L12: 6 | M12: 40 | N12: 6 | O12: 8
A13: Jul | B13: 60 | C13: 7.5 | D13: 33 | E13: 10 | F13: 7.5 | G13: 8 | K13: Jul | L13: 8 | M13: 33 | N13: 8 | O13: 8 | Q13: Maximum: for 1/2 hourly and daily periods use the highest value across all operational combustion lines for the month
A14: Aug | B14: 60 | C14: 7.5 | D14: 96 | E14: 10 | F14: 7.5 | G14: 10 | K14: Aug | L14: 7 | M14: 96 | N14: 7 | O14: 10
A15: Sep | B15: 60 | C15: 6.5 | D15: 53 | E15: 10 | F15: 6.5 | G15: 10 | K15: Sep | L15: 6 | M15: 24 | N15: 6 | O15: 8
A16: Oct | B16: 60 | C16: 7.5 | D16: 30 | E16: 10 | F16: 7.5 | G16: 10 | K16: Oct | L16: 7 | M16: 30 | N16: 7 | O16: 9
A17: Nov | B17: 60 | C17: 7 | D17: 69 | E17: 10 | F17: 7 | G17: 9 | K17: Nov | L17: 7 | M17: 69 | N17: 7 | O17: 9
A18: Dec | B18: 60 | C18: 6.5 | D18: 53 | E18: 10 | F18: 6.5 | G18: 8 | K18: Dec | L18: 6 | M18: 22 | N18: 6 | O18: 7
K19: Annual | L19: =AVERAGE(L7:L18) -> 6.75 | M19: =MAX(M7:M18) -> 196 | N19: =AVERAGE(N7:N18) -> 6.75 | O19: =MAX(O7:O18) -> 13
J21: =+A6 -> 2020 | K21: mg/Nm3 | L21: Monthly 1/2 hourly mean | M21: Monthly 1/2 hourly maximum | N21: Monthly daily mean | O21: Monthly daily maximum
J22: A2 | K22: Jan | L22: 6 | M22: 35 | N22: 6 | O22: 7
K23: Feb | L23: 8 | M23: 59 | N23: 8 | O23: 9
K24: Mar | L24: 8 | M24: 46 | N24: 8 | O24: 10
K25: Apr | L25: 8 | M25: 30 | N25: 8 | O25: 8
K26: May | L26: 7 | M26: 45 | N26: 7 | O26: 8
K27: Jun | L27: 7 | M27: 100 | N27: 7 | O27: 9
K28: Jul | L28: 7 | M28: 33 | N28: 7 | O28: 8
K29: Aug | L29: 8 | M29: 51 | N29: 8 | O29: 9
K30: Sep | L30: 7 | M30: 53 | N30: 7 | O30: 10
K31: Oct | L31: 8 | M31: 27 | N31: 8 | O31: 10
K32: Nov | L32: 7 | M32: 28 | N32: 7 | O32: 9
K33: Dec | L33: 7 | M33: 53 | N33: 7 | O33: 8
K34: Annual | L34: =AVERAGE(L22:L33) -> 7.333333333 | M34: =MAX(M22:M33) -> 100 | N34: =AVERAGE(N22:N33) -> 7.333333333 | O34: =MAX(O22:O33) -> 10
J36: =+A6 -> 2020 | K36: mg/Nm3 | L36: Monthly 1/2 hourly mean | M36: Monthly 1/2 hourly maximum | N36: Monthly daily mean | O36: Monthly daily maximum
J37: A3 | K37: Jan
K38: Feb
K39: Mar
K40: Apr
K41: May
K42: Jun
K43: Jul
K44: Aug
K45: Sep
K46: Oct
K47: Nov
A48: Comments : | K48: Dec
K49: Annual | L49: =AVERAGE(L37:L48) ->  | M49: =MAX(M37:M48) -> 0 | N49: =AVERAGE(N37:N48) ->  | O49: =MAX(O37:O48) -> 0
J51: =+A6 -> 2020 | K51: mg/Nm3 | L51: Monthly 1/2 hourly mean | M51: Monthly 1/2 hourly maximum | N51: Monthly daily mean | O51: Monthly daily maximum
J52: A4 | K52: Jan
K53: Feb
K54: Mar
K55: Apr
K56: May
K57: Jun
K58: Jul
K59: Aug
K60: Sep
K61: Oct
K62: Nov
K63: Dec
K64: Annual | L64: =AVERAGE(L52:L63) ->  | M64: =MAX(M52:M63) -> 0 | N64: =AVERAGE(N52:N63) ->  | O64: =MAX(O52:O63) -> 0
J66: =+A6 -> 2020 | K66: mg/Nm3 | L66: Monthly 1/2 hourly mean | M66: Monthly 1/2 hourly maximum | N66: Monthly daily mean | O66: Monthly daily maximum
J67: A5 | K67: Jan
K68: Feb
K69: Mar
K70: Apr
K71: May
K72: Jun
K73: Jul
K74: Aug
K75: Sep
K76: Oct
K77: Nov
K78: Dec
K79: Annual | L79: =AVERAGE(L67:L78) ->  | M79: =MAX(M67:M78) -> 0 | N79: =AVERAGE(N67:N78) ->  | O79: =MAX(O67:O78) -> 0

Sheet SO2
A1: =+'Cover Page'!$B$29 -> Annual Performance Report 2020 | E1: =+'Cover Page'!$B$33 -> Wolverhampton Energy from Waste Facility
A3: Monitoring of Sulphur dioxide emissions | D3: Whole Installation | G3: See Notes in Cell Q3 | J3: =+A3 -> Monitoring of Sulphur dioxide emissions | N3: Per Combustion Line | Q3: Notes:
Q4: User to add logic to complete Whole installation, Table A5:G18. From the data in Per Combustion Line, Table J6:O79, subject to No. of lines installed
A5: mg/Nm3 | B5: 1/2 Hourly Reference Periods | E5: Daily Reference Periods
A6: =+'Cover Page'!C39 -> 2020 | B6: 1/2 hourly SO2 ELV | C6: Monthly 1/2 hourly mean | D6: Highest 1/2 hourly maximum | E6: Daily SO2 ELV | F6: Monthly daily mean | G6: Highest daily maximum | J6: =+A6 -> 2020 | K6: mg/Nm3 | L6: Monthly 1/2 hourly mean | M6: Monthly 1/2 hourly maximum | N6: Monthly daily mean | O6: Monthly daily maximum
A7: Jan | B7: 200 | C7: =AVERAGE(L7,L22) -> 17 | D7: =MAX(M7,M22) -> 94 | E7: 50 | F7: =AVERAGE(N7,N22) -> 17 | G7: =MAX(O7,O22) -> 23 | J7: A1 | K7: Jan | L7: 17 | M7: 94 | N7: 17 | O7: 23
A8: Feb | B8: 200 | C8: =AVERAGE(L8,L23) -> 21 | D8: =MAX(M8,M23) -> 78 | E8: 50 | F8: =AVERAGE(N8,N23) -> 21 | G8: =MAX(O8,O23) -> 27 | K8: Feb | L8: 21 | M8: 77 | N8: 21 | O8: 27
A9: Mar | B9: 200 | C9: 24 | D9: 85 | E9: 50 | F9: 24 | G9: 30 | K9: Mar | L9: 27 | M9: 85 | N9: 27 | O9: 30 | Q9: Whole Installation table A5:G18:
A10: Apr | B10: 200 | C10: 26.5 | D10: 129 | E10: 50 | F10: 26.5 | G10: 36 | K10: Apr | L10: 28 | M10: 91 | N10: 28 | O10: 36 | Q10: Mean: for 1/2 hourly and daily periods calculate mean of values across all operational combustion lines for the month
A11: May | B11: 200 | C11: 26.5 | D11: 98 | E11: 50 | F11: 26.5 | G11: 35 | K11: May | L11: 29 | M11: 98 | N11: 29 | O11: 35
A12: Jun | B12: 200 | C12: 24.5 | D12: 102 | E12: 50 | F12: 24.5 | G12: 32 | K12: Jun | L12: 26 | M12: 102 | N12: 26 | O12: 32
A13: Jul | B13: 200 | C13: 22.5 | D13: 156 | E13: 50 | F13: 22.5 | G13: 31 | K13: Jul | L13: 24 | M13: 68 | N13: 24 | O13: 31 | Q13: Maximum: for 1/2 hourly and daily periods use the highest value across all operational combustion lines for the month
A14: Aug | B14: 200 | C14: 24 | D14: 99 | E14: 50 | F14: 24 | G14: 36 | K14: Aug | L14: 25 | M14: 99 | N14: 25 | O14: 36
A15: Sep | B15: 200 | C15: 29 | D15: 74 | E15: 50 | F15: 29 | G15: 34 | K15: Sep | L15: 29 | M15: 74 | N15: 29 | O15: 34
A16: Oct | B16: 200 | C16: 28 | D16: 184 | E16: 50 | F16: 28 | G16: 39 | K16: Oct | L16: 30 | M16: 93 | N16: 30 | O16: 39
A17: Nov | B17: 200 | C17: 21.5 | D17: 108 | E17: 50 | F17: 21.5 | G17: 30 | K17: Nov | L17: 20 | M17: 73 | N17: 20 | O17: 30
A18: Dec | B18: 200 | C18: 22 | D18: 110 | E18: 50 | F18: 22 | G18: 28 | K18: Dec | L18: 22 | M18: 65 | N18: 22 | O18: 28
K19: Annual | L19: =AVERAGE(L7:L18) -> 24.83333333 | M19: =MAX(M7:M18) -> 102 | N19: =AVERAGE(N7:N18) -> 24.83333333 | O19: =MAX(O7:O18) -> 39
J21: =+A6 -> 2020 | K21: mg/Nm3 | L21: Monthly 1/2 hourly mean | M21: Monthly 1/2 hourly maximum | N21: Monthly daily mean | O21: Monthly daily maximum
J22: A2 | K22: Jan | L22: 17 | M22: 46 | N22: 17 | O22: 22
K23: Feb | L23: 21 | M23: 78 | N23: 21 | O23: 27
K24: Mar | L24: 21 | M24: 57 | N24: 21 | O24: 27
K25: Apr | L25: 25 | M25: 129 | N25: 25 | O25: 32
K26: May | L26: 24 | M26: 89 | N26: 24 | O26: 33
K27: Jun | L27: 23 | M27: 61 | N27: 23 | O27: 30
K28: Jul | L28: 21 | M28: 156 | N28: 21 | O28: 30
K29: Aug | L29: 23 | M29: 80 | N29: 23 | O29: 31
K30: Sep | L30: 29 | M30: 67 | N30: 29 | O30: 33
K31: Oct | L31: 26 | M31: 184 | N31: 26 | O31: 33
K32: Nov | L32: 23 | M32: 108 | N32: 23 | O32: 30
K33: Dec | L33: 22 | M33: 110 | N33: 22 | O33: 28
K34: Annual | L34: =AVERAGE(L22:L33) -> 22.91666667 | M34: =MAX(M22:M33) -> 184 | N34: =AVERAGE(N22:N33) -> 22.91666667 | O34: =MAX(O22:O33) -> 33
J36: =+A6 -> 2020 | K36: mg/Nm3 | L36: Monthly 1/2 hourly mean | M36: Monthly 1/2 hourly maximum | N36: Monthly daily mean | O36: Monthly daily maximum
J37: A3 | K37: Jan
K38: Feb
K39: Mar
K40: Apr
K41: May
K42: Jun
K43: Jul
K44: Aug
K45: Sep
K46: Oct
K47: Nov
A48: Comments : | K48: Dec
K49: Annual | L49: =AVERAGE(L37:L48) ->  | M49: =MAX(M37:M48) -> 0 | N49: =AVERAGE(N37:N48) ->  | O49: =MAX(O37:O48) -> 0
J51: =+A6 -> 2020 | K51: mg/Nm3 | L51: Monthly 1/2 hourly mean | M51: Monthly 1/2 hourly maximum | N51: Monthly daily mean | O51: Monthly daily maximum
J52: A4 | K52: Jan
K53: Feb
K54: Mar
K55: Apr
K56: May
K57: Jun
K58: Jul
K59: Aug
K60: Sep
K61: Oct
K62: Nov
K63: Dec
K64: Annual | L64: =AVERAGE(L52:L63) ->  | M64: =MAX(M52:M63) -> 0 | N64: =AVERAGE(N52:N63) ->  | O64: =MAX(O52:O63) -> 0
J66: =+A6 -> 2020 | K66: mg/Nm3 | L66: Monthly 1/2 hourly mean | M66: Monthly 1/2 hourly maximum | N66: Monthly daily mean | O66: Monthly daily maximum
J67: A5 | K67: Jan
K68: Feb
K69: Mar
K70: Apr
K71: May
K72: Jun
K73: Jul
K74: Aug
K75: Sep
K76: Oct
K77: Nov
K78: Dec
K79: Annual | L79: =AVERAGE(L67:L78) ->  | M79: =MAX(M67:M78) -> 0 | N79: =AVERAGE(N67:N78) ->  | O79: =MAX(O67:O78) -> 0

Sheet NOx
A1: =+'Cover Page'!$B$29 -> Annual Performance Report 2020 | E1: =+'Cover Page'!$B$33 -> Wolverhampton Energy from Waste Facility
A3: Monitoring of Oxides of Nitrogen emissions | D3: Whole Installation | G3: See Notes in Cell Q3 | J3: =+A3 -> Monitoring of Oxides of Nitrogen emissions | N3: Per Combustion Line | Q3: Notes:
Q4: User to add logic to complete Whole installation, Table A5:G18. From the data in Per Combustion Line, Table J6:O79, subject to No. of lines installed
A5: mg/Nm3 | B5: 1/2 Hourly Reference Periods | E5: Daily Reference Periods
A6: =+'Cover Page'!C39 -> 2020 | B6: 1/2 hourly NOx ELV | C6: Monthly 1/2 hourly mean | D6: Highest 1/2 hourly maximum | E6: Daily NOx ELV | F6: Monthly daily mean | G6: Highest daily maximum | J6: =+A6 -> 2020 | K6: mg/Nm3 | L6: Monthly 1/2 hourly mean | M6: Monthly 1/2 hourly maximum | N6: Monthly daily mean | O6: Monthly daily maximum
A7: Jan | B7: 400 | C7: =AVERAGE(L7,L22) -> 171 | D7: =MAX(M7,M22) -> 321 | E7: 200 | F7: =AVERAGE(N7,N22) -> 171 | G7: =MAX(O7,O22) -> 182 | J7: A1 | K7: Jan | L7: 171 | M7: 321 | N7: 171 | O7: 176
A8: Feb | B8: 400 | C8: =AVERAGE(L8,L23) -> 185.5 | D8: =MAX(M8,M23) -> 269 | E8: 200 | F8: =AVERAGE(N8,N23) -> 185.5 | G8: =MAX(O8,O23) -> 197 | K8: Feb | L8: 186 | M8: 240 | N8: 186 | O8: 191
A9: Mar | B9: 400 | C9: 186 | D9: 313 | E9: 200 | F9: 186 | G9: 210 | K9: Mar | L9: 186 | M9: 313 | N9: 186 | O9: 210 | Q9: Whole Installation table A5:G18:
A10: Apr | B10: 400 | C10: 183 | D10: 289 | E10: 200 | F10: 183 | G10: 189 | K10: Apr | L10: 181 | M10: 285 | N10: 181 | O10: 187 | Q10: Mean: for 1/2 hourly and daily periods calculate mean of values across all operational combustion lines for the month
A11: May | B11: 400 | C11: 184 | D11: 250 | E11: 200 | F11: 184 | G11: 191 | K11: May | L11: 182 | M11: 241 | N11: 182 | O11: 186
A12: Jun | B12: 400 | C12: 183 | D12: 254 | E12: 200 | F12: 183 | G12: 190 | K12: Jun | L12: 184 | M12: 243 | N12: 184 | O12: 188
A13: Jul | B13: 400 | C13: 185.5 | D13: 296 | E13: 200 | F13: 185.5 | G13: 194 | K13: Jul | L13: 185 | M13: 294 | N13: 185 | O13: 194 | Q13: Maximum: for 1/2 hourly and daily periods use the highest value across all operational combustion lines for the month
A14: Aug | B14: 400 | C14: 185.5 | D14: 372 | E14: 200 | F14: 185.5 | G14: 198 | K14: Aug | L14: 185 | M14: 372 | N14: 185 | O14: 198
A15: Sep | B15: 400 | C15: 186 | D15: 364 | E15: 200 | F15: 186 | G15: 187 | K15: Sep | L15: 186 | M15: 364 | N15: 186 | O15: 187
A16: Oct | B16: 400 | C16: 187 | D16: 380 | E16: 200 | F16: 187 | G16: 198 | K16: Oct | L16: 186 | M16: 334 | N16: 186 | O16: 195
A17: Nov | B17: 400 | C17: 186 | D17: 307 | E17: 200 | F17: 186 | G17: 193 | K17: Nov | L17: 186 | M17: 307 | N17: 186 | O17: 193
A18: Dec | B18: 400 | C18: 186 | D18: 396 | E18: 200 | F18: 186 | G18: 188 | K18: Dec | L18: 186 | M18: 309 | N18: 186 | O18: 188
K19: Annual | L19: =AVERAGE(L7:L18) -> 183.6666667 | M19: =MAX(M7:M18) -> 372 | N19: =AVERAGE(N7:N18) -> 183.6666667 | O19: =MAX(O7:O18) -> 210
J21: =+A6 -> 2020 | K21: mg/Nm3 | L21: Monthly 1/2 hourly mean | M21: Monthly 1/2 hourly maximum | N21: Monthly daily mean | O21: Monthly daily maximum
J22: A2 | K22: Jan | L22: 171 | M22: 292 | N22: 171 | O22: 182
K23: Feb | L23: 185 | M23: 269 | N23: 185 | O23: 197
K24: Mar | L24: 186 | M24: 247 | N24: 186 | O24: 187
K25: Apr | L25: 185 | M25: 289 | N25: 185 | O25: 189
K26: May | L26: 186 | M26: 250 | N26: 186 | O26: 191
K27: Jun | L27: 182 | M27: 254 | N27: 182 | O27: 190
K28: Jul | L28: 186 | M28: 296 | N28: 186 | O28: 189
K29: Aug | L29: 186 | M29: 295 | N29: 186 | O29: 190
K30: Sep | L30: 186 | M30: 295 | N30: 186 | O30: 187
K31: Oct | L31: 188 | M31: 380 | N31: 188 | O31: 198
K32: Nov | L32: 186 | M32: 273 | N32: 186 | O32: 188
K33: Dec | L33: 186 | M33: 396 | N33: 186 | O33: 188
K34: Annual | L34: =AVERAGE(L22:L33) -> 184.4166667 | M34: =MAX(M22:M33) -> 396 | N34: =AVERAGE(N22:N33) -> 184.4166667 | O34: =MAX(O22:O33) -> 198
J36: =+A6 -> 2020 | K36: mg/Nm3 | L36: Monthly 1/2 hourly mean | M36: Monthly 1/2 hourly maximum | N36: Monthly daily mean | O36: Monthly daily maximum
J37: A3 | K37: Jan
K38: Feb
K39: Mar
K40: Apr
K41: May
K42: Jun
K43: Jul
K44: Aug
K45: Sep
K46: Oct
K47: Nov
A48: Comments : | K48: Dec
K49: Annual | L49: =AVERAGE(L37:L48) ->  | M49: =MAX(M37:M48) -> 0 | N49: =AVERAGE(N37:N48) ->  | O49: =MAX(O37:O48) -> 0
J51: =+A6 -> 2020 | K51: mg/Nm3 | L51: Monthly 1/2 hourly mean | M51: Monthly 1/2 hourly maximum | N51: Monthly daily mean | O51: Monthly daily maximum
J52: A4 | K52: Jan
K53: Feb
K54: Mar
K55: Apr
K56: May
K57: Jun
K58: Jul
K59: Aug
K60: Sep
K61: Oct
K62: Nov
K63: Dec
K64: Annual | L64: =AVERAGE(L52:L63) ->  | M64: =MAX(M52:M63) -> 0 | N64: =AVERAGE(N52:N63) ->  | O64: =MAX(O52:O63) -> 0
J66: =+A6 -> 2020 | K66: mg/Nm3 | L66: Monthly 1/2 hourly mean | M66: Monthly 1/2 hourly maximum | N66: Monthly daily mean | O66: Monthly daily maximum
J67: A5 | K67: Jan
K68: Feb
K69: Mar
K70: Apr
K71: May
K72: Jun
K73: Jul
K74: Aug
K75: Sep
K76: Oct
K77: Nov
K78: Dec
K79: Annual | L79: =AVERAGE(L67:L78) ->  | M79: =MAX(M67:M78) -> 0 | N79: =AVERAGE(N67:N78) ->  | O79: =MAX(O67:O78) -> 0

Sheet TOC
A1: =+'Cover Page'!$B$29 -> Annual Performance Report 2020 | E1: =+'Cover Page'!$B$33 -> Wolverhampton Energy from Waste Facility
A3: Monitoring of Total organic carbon emissions | D3: Whole Installation | G3: See Notes in Cell Q3 | J3: =+A3 -> Monitoring of Total organic carbon emissions | N3: Per Combustion Line | Q3: Notes:
Q4: User to add logic to complete Whole installation, Table A5:G18. From the data in Per Combustion Line, Table J6:O79, subject to No. of lines installed
A5: mg/Nm3 | B5: 1/2 Hourly Reference Periods | E5: Daily Reference Periods
A6: =+'Cover Page'!C39 -> 2020 | B6: 1/2 hourly TOC ELV | C6: Monthly 1/2 hourly mean | D6: Highest 1/2 hourly maximum | E6: Daily TOC ELV | F6: Monthly daily mean | G6: Highest daily maximum | J6: =+A6 -> 2020 | K6: mg/Nm3 | L6: Monthly 1/2 hourly mean | M6: Monthly 1/2 hourly maximum | N6: Monthly daily mean | O6: Monthly daily maximum
A7: Jan | B7: 20 | C7: =AVERAGE(L7,L22) -> 0 | D7: =MAX(M7,M22) -> 8 | E7: 10 | F7: =AVERAGE(N7,N22) -> 0 | G7: =MAX(O7,O22) -> 0 | J7: A1 | K7: Jan | L7: 0 | M7: 8 | N7: 0 | O7: 0
A8: Feb | B8: 20 | C8: =AVERAGE(L8,L23) -> 0 | D8: =MAX(M8,M23) -> 8 | E8: 10 | F8: =AVERAGE(N8,N23) -> 0 | G8: =MAX(O8,O23) -> 2 | K8: Feb | L8: 0 | M8: 8 | N8: 0 | O8: 2
A9: Mar | B9: 20 | C9: 0.5 | D9: 25 | E9: 10 | F9: 0.5 | G9: 2 | K9: Mar | L9: 1 | M9: 25 | N9: 1 | O9: 2 | Q9: Whole Installation table A5:G18:
A10: Apr | B10: 20 | C10: 0.5 | D10: 13 | E10: 10 | F10: 0.5 | G10: 1 | K10: Apr | L10: 1 | M10: 13 | N10: 1 | O10: 1 | Q10: Mean: for 1/2 hourly and daily periods calculate mean of values across all operational combustion lines for the month
A11: May | B11: 20 | C11: 0.5 | D11: 24 | E11: 10 | F11: 0.5 | G11: 2 | K11: May | L11: 1 | M11: 24 | N11: 1 | O11: 2
A12: Jun | B12: 20 | C12: 1 | D12: 21 | E12: 10 | F12: 1 | G12: 5 | K12: Jun | L12: 1 | M12: 21 | N12: 1 | O12: 3
A13: Jul | B13: 20 | C13: 1.5 | D13: 13 | E13: 10 | F13: 1.5 | G13: 4 | K13: Jul | L13: 1 | M13: 13 | N13: 1 | O13: 3 | Q13: Maximum: for 1/2 hourly and daily periods use the highest value across all operational combustion lines for the month
A14: Aug | B14: 20 | C14: 1 | D14: 23 | E14: 10 | F14: 1 | G14: 4 | K14: Aug | L14: 1 | M14: 21 | N14: 1 | O14: 4
A15: Sep | B15: 20 | C15: 0.5 | D15: 11 | E15: 10 | F15: 0.5 | G15: 2 | K15: Sep | L15: 1 | M15: 11 | N15: 1 | O15: 2
A16: Oct | B16: 20 | C16: 0 | D16: 7 | E16: 10 | F16: 0 | G16: 0 | K16: Oct | L16: 0 | M16: 6 | N16: 0 | O16: 0
A17: Nov | B17: 20 | C17: 0 | D17: 5 | E17: 10 | F17: 0 | G17: 1 | K17: Nov | L17: 0 | M17: 4 | N17: 0 | O17: 1
A18: Dec | B18: 20 | C18: 0 | D18: 8 | E18: 10 | F18: 0 | G18: 0 | K18: Dec | L18: 0 | M18: 4 | N18: 0 | O18: 0
K19: Annual | L19: =AVERAGE(L7:L18) -> 0.5833333333 | M19: =MAX(M7:M18) -> 25 | N19: =AVERAGE(N7:N18) -> 0.5833333333 | O19: =MAX(O7:O18) -> 4
J21: =+A6 -> 2020 | K21: mg/Nm3 | L21: Monthly 1/2 hourly mean | M21: Monthly 1/2 hourly maximum | N21: Monthly daily mean | O21: Monthly daily maximum
J22: A2 | K22: Jan | L22: 0 | M22: 4 | N22: 0 | O22: 0
K23: Feb | L23: 0 | M23: 4 | N23: 0 | O23: 0
K24: Mar | L24: 0 | M24: 4 | N24: 0 | O24: 1
K25: Apr | L25: 0 | M25: 10 | N25: 0 | O25: 1
K26: May | L26: 0 | M26: 10 | N26: 0 | O26: 1
K27: Jun | L27: 1 | M27: 12 | N27: 1 | O27: 5
K28: Jul | L28: 2 | M28: 10 | N28: 2 | O28: 4
K29: Aug | L29: 1 | M29: 23 | N29: 1 | O29: 4
K30: Sep | L30: 0 | M30: 5 | N30: 0 | O30: 0
K31: Oct | L31: 0 | M31: 7 | N31: 0 | O31: 0
K32: Nov | L32: 0 | M32: 5 | N32: 0 | O32: 0
K33: Dec | L33: 0 | M33: 8 | N33: 0 | O33: 0
K34: Annual | L34: =AVERAGE(L22:L33) -> 0.3333333333 | M34: =MAX(M22:M33) -> 23 | N34: =AVERAGE(N22:N33) -> 0.3333333333 | O34: =MAX(O22:O33) -> 5
J36: =+A6 -> 2020 | K36: mg/Nm3 | L36: Monthly 1/2 hourly mean | M36: Monthly 1/2 hourly maximum | N36: Monthly daily mean | O36: Monthly daily maximum
J37: A3 | K37: Jan
K38: Feb
K39: Mar
K40: Apr
K41: May
K42: Jun
K43: Jul
K44: Aug
K45: Sep
K46: Oct
K47: Nov
A48: Comments : | K48: Dec
K49: Annual | L49: =AVERAGE(L37:L48) ->  | M49: =MAX(M37:M48) -> 0 | N49: =AVERAGE(N37:N48) ->  | O49: =MAX(O37:O48) -> 0
J51: =+A6 -> 2020 | K51: mg/Nm3 | L51: Monthly 1/2 hourly mean | M51: Monthly 1/2 hourly maximum | N51: Monthly daily mean | O51: Monthly daily maximum
J52: A4 | K52: Jan
K53: Feb
K54: Mar
K55: Apr
K56: May
K57: Jun
K58: Jul
K59: Aug
K60: Sep
K61: Oct
K62: Nov
K63: Dec
K64: Annual | L64: =AVERAGE(L52:L63) ->  | M64: =MAX(M52:M63) -> 0 | N64: =AVERAGE(N52:N63) ->  | O64: =MAX(O52:O63) -> 0
J66: =+A6 -> 2020 | K66: mg/Nm3 | L66: Monthly 1/2 hourly mean | M66: Monthly 1/2 hourly maximum | N66: Monthly daily mean | O66: Monthly daily maximum
J67: A5 | K67: Jan
K68: Feb
K69: Mar
K70: Apr
K71: May
K72: Jun
K73: Jul
K74: Aug
K75: Sep
K76: Oct
K77: Nov
K78: Dec
K79: Annual | L79: =AVERAGE(L67:L78) ->  | M79: =MAX(M67:M78) -> 0 | N79: =AVERAGE(N67:N78) ->  | O79: =MAX(O67:O78) -> 0

Sheet Particulates
A1: =+'Cover Page'!$B$29 -> Annual Performance Report 2020 | E1: =+'Cover Page'!$B$33 -> Wolverhampton Energy from Waste Facility
A3: Monitoring of Particulate matter emissions | D3: Whole Installation | G3: See Notes in Cell Q3 | J3: =+A3 -> Monitoring of Particulate matter emissions | N3: Per Combustion Line | Q3: Notes:
Q4: User to add logic to complete Whole installation, Table A5:G18. From the data in Per Combustion Line, Table J6:O79, subject to No. of lines installed
A5: mg/Nm3 | B5: 1/2 Hourly Reference Periods | E5: Daily Reference Periods
A6: =+'Cover Page'!C39 -> 2020 | B6: 1/2 hourly PM ELV | C6: Monthly 1/2 hourly mean | D6: Highest 1/2 hourly maximum | E6: Daily PM ELV | F6: Monthly daily mean | G6: Highest daily maximum | J6: =+A6 -> 2020 | K6: mg/Nm3 | L6: Monthly 1/2 hourly mean | M6: Monthly 1/2 hourly maximum | N6: Monthly daily mean | O6: Monthly daily maximum
A7: Jan | B7: 30 | C7: =AVERAGE(L7,L22) -> 0.145 | D7: =MAX(M7,M22) -> 21 | E7: 10 | F7: =AVERAGE(N7,N22) -> 0.145 | G7: =MAX(O7,O22) -> 2 | J7: A1 | K7: Jan | L7: 0.24 | M7: 21 | N7: 0.24 | O7: 2
A8: Feb | B8: 30 | C8: =AVERAGE(L8,L23) -> 0.075 | D8: =MAX(M8,M23) -> 1 | E8: 10 | F8: =AVERAGE(N8,N23) -> 0.075 | G8: =MAX(O8,O23) -> 0 | K8: Feb | L8: 0.12 | M8: 1 | N8: 0.12 | O8: 0
A9: Mar | B9: 30 | C9: 0.14 | D9: 2 | E9: 10 | F9: 0.14 | G9: 1 | K9: Mar | L9: 0.18 | M9: 2 | N9: 0.18 | O9: 1 | Q9: Whole Installation table A5:G18:
A10: Apr | B10: 30 | C10: 1.24 | D10: 19 | E10: 10 | F10: 1.24 | G10: 7 | K10: Apr | L10: 2.29 | M10: 19 | N10: 2.29 | O10: 7 | Q10: Mean: for 1/2 hourly and daily periods calculate mean of values across all operational combustion lines for the month
A11: May | B11: 30 | C11: 1.705 | D11: 11 | E11: 10 | F11: 1.705 | G11: 7 | K11: May | L11: 3.3 | M11: 11 | N11: 3.3 | O11: 7
A12: Jun | B12: 30 | C12: 0.245 | D12: 4 | E12: 10 | F12: 0.245 | G12: 1 | K12: Jun | L12: 0.4 | M12: 4 | N12: 0.4 | O12: 1
A13: Jul | B13: 30 | C13: 0.12 | D13: 2 | E13: 10 | F13: 0.12 | G13: 0 | K13: Jul | L13: 0.12 | M13: 2 | N13: 0.12 | O13: 0 | Q13: Maximum: for 1/2 hourly and daily periods use the highest value across all operational combustion lines for the month
A14: Aug | B14: 30 | C14: 0.12 | D14: 8 | E14: 10 | F14: 0.12 | G14: 1 | K14: Aug | L14: 0.13 | M14: 8 | N14: 0.13 | O14: 1
A15: Sep | B15: 30 | C15: 0.22 | D15: 3 | E15: 10 | F15: 0.22 | G15: 0 | K15: Sep | L15: 0.32 | M15: 3 | N15: 0.32 | O15: 0
A16: Oct | B16: 30 | C16: 0.095 | D16: 1 | E16: 10 | F16: 0.095 | G16: 0 | K16: Oct | L16: 0.13 | M16: 1 | N16: 0.13 | O16: 0
A17: Nov | B17: 30 | C17: 0.08 | D17: 1 | E17: 10 | F17: 0.08 | G17: 0 | K17: Nov | L17: 0.12 | M17: 1 | N17: 0.12 | O17: 0
A18: Dec | B18: 30 | C18: 0.085 | D18: 1 | E18: 10 | F18: 0.085 | G18: 0 | K18: Dec | L18: 0.13 | M18: 1 | N18: 0.13 | O18: 0
K19: Annual | L19: =AVERAGE(L7:L18) -> 0.6233333333 | M19: =MAX(M7:M18) -> 21 | N19: =AVERAGE(N7:N18) -> 0.6233333333 | O19: =MAX(O7:O18) -> 7
J21: =+A6 -> 2020 | K21: mg/Nm3 | L21: Monthly 1/2 hourly mean | M21: Monthly 1/2 hourly maximum | N21: Monthly daily mean | O21: Monthly daily maximum
J22: A2 | K22: Jan | L22: 0.05 | M22: 1 | N22: 0.05 | O22: 0
K23: Feb | L23: 0.03 | M23: 1 | N23: 0.03 | O23: 0
K24: Mar | L24: 0.1 | M24: 1 | N24: 0.1 | O24: 0
K25: Apr | L25: 0.19 | M25: 4 | N25: 0.19 | O25: 2
K26: May | L26: 0.11 | M26: 2 | N26: 0.11 | O26: 0
K27: Jun | L27: 0.09 | M27: 0 | N27: 0.09 | O27: 0
K28: Jul | L28: 0.12 | M28: 0 | N28: 0.12 | O28: 0
K29: Aug | L29: 0.11 | M29: 1 | N29: 0.11 | O29: 0
K30: Sep | L30: 0.12 | M30: 1 | N30: 0.12 | O30: 0
K31: Oct | L31: 0.06 | M31: 1 | N31: 0.06 | O31: 0
K32: Nov | L32: 0.04 | M32: 0 | N32: 0.04 | O32: 0
K33: Dec | L33: 0.04 | M33: 0 | N33: 0.04 | O33: 0
K34: Annual | L34: =AVERAGE(L22:L33) -> 0.08833333333 | M34: =MAX(M22:M33) -> 4 | N34: =AVERAGE(N22:N33) -> 0.08833333333 | O34: =MAX(O22:O33) -> 2
J36: =+A6 -> 2020 | K36: mg/Nm3 | L36: Monthly 1/2 hourly mean | M36: Monthly 1/2 hourly maximum | N36: Monthly daily mean | O36: Monthly daily maximum
J37: A3 | K37: Jan
K38: Feb
K39: Mar
K40: Apr
K41: May
K42: Jun
K43: Jul
K44: Aug
K45: Sep
K46: Oct
K47: Nov
A48: Comments : | K48: Dec
K49: Annual | L49: =AVERAGE(L37:L48) ->  | M49: =MAX(M37:M48) -> 0 | N49: =AVERAGE(N37:N48) ->  | O49: =MAX(O37:O48) -> 0
J51: =+A6 -> 2020 | K51: mg/Nm3 | L51: Monthly 1/2 hourly mean | M51: Monthly 1/2 hourly maximum | N51: Monthly daily mean | O51: Monthly daily maximum
J52: A4 | K52: Jan
K53: Feb
K54: Mar
K55: Apr
K56: May
K57: Jun
K58: Jul
K59: Aug
K60: Sep
K61: Oct
K62: Nov
K63: Dec
K64: Annual | L64: =AVERAGE(L52:L63) ->  | M64: =MAX(M52:M63) -> 0 | N64: =AVERAGE(N52:N63) ->  | O64: =MAX(O52:O63) -> 0
J66: =+A6 -> 2020 | K66: mg/Nm3 | L66: Monthly 1/2 hourly mean | M66: Monthly 1/2 hourly maximum | N66: Monthly daily mean | O66: Monthly daily maximum
J67: A5 | K67: Jan
K68: Feb
K69: Mar
K70: Apr
K71: May
K72: Jun
K73: Jul
K74: Aug
K75: Sep
K76: Oct
K77: Nov
K78: Dec
K79: Annual | L79: =AVERAGE(L67:L78) ->  | M79: =MAX(M67:M78) -> 0 | N79: =AVERAGE(N67:N78) ->  | O79: =MAX(O67:O78) -> 0

Sheet CO 95% 10 min
A1: =+'Cover Page'!$B$29 -> Annual Performance Report 2020 | E1: =+'Cover Page'!$B$33 -> Wolverhampton Energy from Waste Facility
A3: Monitoring of Carbon Monoxide (10-minute avg) | E3: Whole Installation | H3: See Notes in Cell S3 | J3: =+A3 -> Monitoring of Carbon Monoxide (10-minute avg) | O3: Per Combustion Line | Q3: Notes: | S3: Notes:
S4: User to add logic to complete Whole installation, Table A5:H18. From the data in Per Combustion Line, Table K6:Q79, subject to No. of lines installed
A5: mg/Nm3 | B5: 10-minute Reference Periods | F5: Daily Reference Periods
A6: =+'Cover Page'!C39 -> 2020 | B6: 95%ile 10-min avg CO ELV | C6: 95%ile 10-min avg maximum | D6: Monthly CO 10-min avg mean | E6: 10-min avg maximum | F6: Daily CO ELV | G6: Monthly daily mean | H6: Highest daily maximum | K6: =+A6 -> 2020 | L6: mg/Nm3 | M6: 95%ile 10-min avg maximum | N6: Monthly CO 10-min avg mean | O6: 10-min avg maximum | P6: Monthly daily mean | Q6: Monthly daily maximum
A7: Jan | B7: 150 | C7: =MAX(M7,M22) -> 17.3 | D7: =AVERAGE(N7,N22) -> 9 | E7: =MAX(O7,O22) -> 60 | F7: 50 | G7: =AVERAGE(P7,P22) -> 9 | H7: =MAX(Q7,Q22) -> 20 | K7: A1 | L7: Jan | M7: 12.67 | N7: 8 | O7: 22 | P7: 8 | Q7: 17
A8: Feb | B8: =+B7 -> 150 | C8: =MAX(M8,M23) -> 18.62 | D8: =AVERAGE(N8,N23) -> 9 | E8: =MAX(O8,O23) -> 45 | F8: =+F7 -> 50 | G8: =AVERAGE(P8,P23) -> 9 | H8: =MAX(Q8,Q23) -> 21 | L8: Feb | M8: 12.54 | N8: 9 | O8: 39 | P8: 9 | Q8: 21
A9: Mar | B9: =+B8 -> 150 | C9: 22.25 | D9: 9.5 | E9: 39 | F9: =+F8 -> 50 | G9: 9.5 | H9: 20 | L9: Mar | M9: 11.49 | N9: 7 | O9: 31 | P9: 7 | Q9: 20 | S9: Whole Installation table A5:H18:
A10: Apr | B10: 150 | C10: 21.13 | D10: 8 | E10: 45 | F10: 50 | G10: 8 | H10: 18 | L10: Apr | M10: 9.14 | N10: 4 | O10: 36 | P10: 4 | Q10: 9 | S10: Mean: for 10-min and daily periods use average of all operational combustion lines.
A11: May | B11: 150 | C11: 30.22 | D11: 11 | E11: 48 | F11: 50 | G11: 11 | H11: 26 | L11: May | M11: 12.37 | N11: 5 | O11: 39 | P11: 5 | Q11: 10
A12: Jun | B12: 150 | C12: 35.63 | D12: 15 | E12: 64 | F12: 50 | G12: 15 | H12: 28 | L12: Jun | M12: 24.23 | N12: 11 | O12: 64 | P12: 11 | Q12: 28
A13: Jul | B13: 150 | C13: 37.55 | D13: 15 | E13: 71 | F13: 50 | G13: 15 | H13: 35 | L13: Jul | M13: 16.89 | N13: 9 | O13: 70 | P13: 9 | Q13: 23 | S13: Maximum: for 10-min and daily periods use the highest of all operational combustion lines in any month.
A14: Aug | B14: 150 | C14: 40.34 | D14: 14.5 | E14: 100 | F14: 50 | G14: 14.5 | H14: 34 | L14: Aug | M14: 17.91 | N14: 8 | O14: 100 | P14: 8 | Q14: 23
A15: Sep | B15: 150 | C15: 49.49 | D15: 16 | E15: 196 | F15: 50 | G15: 16 | H15: 27 | L15: Sep | M15: 22.78 | N15: 10 | O15: 196 | P15: 10 | Q15: 17
A16: Oct | B16: 150 | C16: 23.8 | D16: 10 | E16: 63 | F16: 50 | G16: 10 | H16: 30 | L16: Oct | M16: 13.98 | N16: 8 | O16: 54 | P16: 8 | Q16: 30
A17: Nov | B17: 150 | C17: 17.77 | D17: 9 | E17: 128 | F17: 50 | G17: 9 | H17: 16 | L17: Nov | M17: 15.76 | N17: 9 | O17: 128 | P17: 9 | Q17: 16
A18: Dec | B18: 150 | C18: 18.28 | D18: 8.5 | E18: 39 | F18: 50 | G18: 8.5 | H18: 17 | L18: Dec | M18: 12.76 | N18: 8 | O18: 25 | P18: 8 | Q18: 17
L19: Annual | M19: =AVERAGE(M7:M18) -> 15.21 | N19: =AVERAGE(N7:N18) -> 8 | O19: =MAX(O7:O18) -> 196 | P19: =AVERAGE(P7:P18) -> 8 | Q19: =MAX(Q7:Q18) -> 30
K21: =+A6 -> 2020 | L21: mg/Nm3 | M21: 95%ile 10-min avg maximum | N21: Monthly CO 10-min avg mean | O21: 10-min avg maximum | P21: Monthly daily mean | Q21: Monthly daily maximum
K22: A2 | L22: Jan | M22: 17.3 | N22: 10 | O22: 60 | P22: 10 | Q22: 20
L23: Feb | M23: 18.62 | N23: 9 | O23: 45 | P23: 9 | Q23: 18
L24: Mar | M24: 22.25 | N24: 12 | O24: 39 | P24: 12 | Q24: 20
L25: Apr | M25: 21.13 | N25: 12 | O25: 45 | P25: 12 | Q25: 18
L26: May | M26: 30.22 | N26: 17 | O26: 48 | P26: 17 | Q26: 26
L27: Jun | M27: 35.63 | N27: 19 | O27: 54 | P27: 19 | Q27: 28
L28: Jul | M28: 37.55 | N28: 21 | O28: 71 | P28: 21 | Q28: 35
L29: Aug | M29: 40.34 | N29: 21 | O29: 93 | P29: 21 | Q29: 34
L30: Sep | M30: 49.49 | N30: 22 | O30: 176 | P30: 22 | Q30: 27
L31: Oct | M31: 23.8 | N31: 12 | O31: 63 | P31: 12 | Q31: 21
L32: Nov | M32: 17.77 | N32: 9 | O32: 35 | P32: 9 | Q32: 15
L33: Dec | M33: 18.28 | N33: 9 | O33: 39 | P33: 9 | Q33: 17
L34: Annual | M34: =AVERAGE(M22:M33) -> 27.69833333 | N34: =AVERAGE(N22:N33) -> 14.41666667 | O34: =MAX(O22:O33) -> 176 | P34: =AVERAGE(P22:P33) -> 14.41666667 | Q34: =MAX(Q22:Q33) -> 35
K36: =+A6 -> 2020 | L36: mg/Nm3 | M36: 95%ile 10-min avg maximum | N36: Monthly CO 10-min avg mean | O36: 10-min avg maximum | P36: Monthly daily mean | Q36: Monthly daily maximum
K37: A3 | L37: Jan
L38: Feb
L39: Mar
L40: Apr
L41: May
L42: Jun
L43: Jul
L44: Aug
L45: Sep
L46: Oct
L47: Nov
A48: Comments : | L48: Dec
A49: Environment Agency explanatory note: The 10-minute average ELV is based on the “95th percentile”. In this case this means that 95% of the 10 minute averages in the relevant 24-hour period (i.e. 137) must be below 150 mg/Nm3, and 5% (i.e. 7) are allowed to be any value above 150 mg/Nm3. Whilst we expect operators to minimise CO emissions at all times, it is perfectly acceptable for the value of the maximum 10-minute average to be above 150 mg/Nm3, provided the 95th percentile ELV has been met for that period. | L49: Annual | M49: =AVERAGE(M37:M48) ->  | O49: =MAX(O37:O48) -> 0 | P49: =AVERAGE(P37:P48) ->  | Q49: =MAX(Q37:Q48) -> 0
K51: =+A6 -> 2020 | L51: mg/Nm3 | M51: 95%ile 10-min avg maximum | N51: Monthly CO 10-min avg mean | O51: 10-min avg maximum | P51: Monthly daily mean | Q51: Monthly daily maximum
K52: A4 | L52: Jan
L53: Feb
L54: Mar
L55: Apr
L56: May
L57: Jun
L58: Jul
L59: Aug
L60: Sep
L61: Oct
L62: Nov
L63: Dec
L64: Annual | M64: =AVERAGE(M52:M63) ->  | O64: =MAX(O52:O63) -> 0 | P64: =AVERAGE(P52:P63) ->  | Q64: =MAX(Q52:Q63) -> 0
K66: =+A6 -> 2020 | L66: mg/Nm3 | M66: 95%ile 10-min avg maximum | N66: Monthly CO 10-min avg mean | O66: 10-min avg maximum | P66: Monthly daily mean | Q66: Monthly daily maximum
K67: A5 | L67: Jan
L68: Feb
L69: Mar
L70: Apr
L71: May
L72: Jun
L73: Jul
L74: Aug
L75: Sep
L76: Oct
L77: Nov
L78: Dec
L79: Annual | M79: =AVERAGE(M67:M78) ->  | O79: =MAX(O67:O78) -> 0 | P79: =AVERAGE(P67:P78) ->  | Q79: =MAX(Q67:Q78) -> 0

Sheet NH3
A1: =+'Cover Page'!$B$29 -> Annual Performance Report 2020 | E1: =+'Cover Page'!$B$33 -> Wolverhampton Energy from Waste Facility
A3: Monitoring of Ammnonia emissions | D3: Whole Installation | G3: See Notes in Cell Q3 | J3: =+A3 -> Monitoring of Ammnonia emissions | N3: Per Combustion Line | Q3: Notes:
Q4: User to add logic to complete Whole installation, Table A5:G18. From the data in Per Combustion Line, Table J6:O79, subject to No. of lines installed
A5: mg/Nm3 | B5: 1/2 Hourly Reference Periods | E5: Daily Reference Periods
A6: =+'Cover Page'!C39 -> 2020 | B6: 1/2 hourly NH3 ELV | C6: Monthly 1/2 hourly mean | D6: Highest 1/2 hourly maximum | E6: Daily NH3 ELV | F6: Monthly daily mean | G6: Highest daily maximum | J6: =+A6 -> 2020 | K6: mg/Nm3 | L6: Monthly 1/2 hourly mean | M6: Monthly 1/2 hourly maximum | N6: Monthly daily mean | O6: Monthly daily maximum
A7: Jan | B7: 0 | C7: =AVERAGE(L7,L22) -> 2.5 | D7: =MAX(M7,M22) -> 31 | E7: 10 | F7: =AVERAGE(N7,N22) -> 2.5 | G7: =MAX(O7,O22) -> 6 | J7: A1 | K7: Jan | L7: 2 | M7: 31 | N7: 2 | O7: 6
A8: Feb | B8: =+B7 -> 0 | C8: =AVERAGE(L8,L23) -> 3 | D8: =MAX(M8,M23) -> 151 | E8: =+E7 -> 10 | F8: =AVERAGE(N8,N23) -> 3 | G8: =MAX(O8,O23) -> 8 | K8: Feb | L8: 3 | M8: 151 | N8: 3 | O8: 8
A9: Mar | B9: =+B8 -> 0 | C9: 1 | D9: 59 | E9: =+E8 -> 10 | F9: 1 | G9: 7 | K9: Mar | L9: 1 | M9: 59 | N9: 1 | O9: 7 | Q9: Whole Installation table A5:G18:
A10: Apr | B10: 0 | C10: 1 | D10: 45 | E10: 10 | F10: 1 | G10: 4 | K10: Apr | L10: 1 | M10: 21 | N10: 1 | O10: 4 | Q10: Mean: for 1/2 hourly and daily periods calculate mean of values across all operational combustion lines for the month
A11: May | B11: 0 | C11: 2.5 | D11: 50 | E11: 10 | F11: 2.5 | G11: 6 | K11: May | L11: 2 | M11: 31 | N11: 2 | O11: 4
A12: Jun | B12: 0 | C12: 2.5 | D12: 81 | E12: 10 | F12: 2.5 | G12: 7 | K12: Jun | L12: 2 | M12: 63 | N12: 2 | O12: 4
A13: Jul | B13: 0 | C13: 2 | D13: 90 | E13: 10 | F13: 2 | G13: 6 | K13: Jul | L13: 1 | M13: 51 | N13: 1 | O13: 4 | Q13: Maximum: for 1/2 hourly and daily periods use the highest value across all operational combustion lines for the month
A14: Aug | B14: 0 | C14: 3.5 | D14: 57 | E14: 10 | F14: 3.5 | G14: 11 | K14: Aug | L14: 3 | M14: 57 | N14: 3 | O14: 11
A15: Sep | B15: 0 | C15: 7.5 | D15: 81 | E15: 10 | F15: 7.5 | G15: 13 | K15: Sep | L15: 9 | M15: 81 | N15: 9 | O15: 13
A16: Oct | B16: 0 | C16: 4 | D16: 77 | E16: 10 | F16: 4 | G16: 21 | K16: Oct | L16: 4 | M16: 77 | N16: 4 | O16: 21
A17: Nov | B17: 0 | C17: 2 | D17: 49 | E17: 10 | F17: 2 | G17: 7 | K17: Nov | L17: 3 | M17: 49 | N17: 3 | O17: 7
A18: Dec | B18: 0 | C18: =AVERAGE(L18,L33) -> 0.5 | D18: =MAX(M18,M33) -> 56 | E18: 10 | F18: 0.5 | G18: 2 | K18: Dec | L18: 1 | M18: 9 | N18: 1 | O18: 1
K19: Annual | L19: =AVERAGE(L7:L18) -> 2.666666667 | M19: =MAX(M7:M18) -> 151 | N19: =AVERAGE(N7:N18) -> 2.666666667 | O19: =MAX(O7:O18) -> 21
J21: =+A6 -> 2020 | K21: mg/Nm3 | L21: Monthly 1/2 hourly mean | M21: Monthly 1/2 hourly maximum | N21: Monthly daily mean | O21: Monthly daily maximum
J22: A2 | K22: Jan | L22: 3 | M22: 31 | N22: 3 | O22: 5
K23: Feb | L23: 3 | M23: 21 | N23: 3 | O23: 7
K24: Mar | L24: 1 | M24: 23 | N24: 1 | O24: 3
K25: Apr | L25: 1 | M25: 45 | N25: 1 | O25: 4
K26: May | L26: 3 | M26: 50 | N26: 3 | O26: 6
K27: Jun | L27: 3 | M27: 81 | N27: 3 | O27: 7
K28: Jul | L28: 3 | M28: 90 | N28: 3 | O28: 6
K29: Aug | L29: 4 | M29: 49 | N29: 4 | O29: 8
K30: Sep | L30: 6 | M30: 52 | N30: 6 | O30: 9
K31: Oct | L31: 4 | M31: 72 | N31: 4 | O31: 10
K32: Nov | L32: 1 | M32: 41 | N32: 1 | O32: 5
K33: Dec | L33: 0 | M33: 56 | N33: 0 | O33: 2
K34: Annual | L34: =AVERAGE(L22:L33) -> 2.666666667 | M34: =MAX(M22:M33) -> 90 | N34: =AVERAGE(N22:N33) -> 2.666666667 | O34: =MAX(O22:O33) -> 10
J36: =+A6 -> 2020 | K36: mg/Nm3 | L36: Monthly 1/2 hourly mean | M36: Monthly 1/2 hourly maximum | N36: Monthly daily mean | O36: Monthly daily maximum
J37: A3 | K37: Jan
K38: Feb
K39: Mar
K40: Apr
K41: May
K42: Jun
K43: Jul
K44: Aug
K45: Sep
K46: Oct
K47: Nov
A48: Comments : | K48: Dec
A49: An indicated ELV value of zero in the table above means that no ammonia limit is set in the permit. | K49: Annual | L49: =AVERAGE(L37:L48) ->  | M49: =MAX(M37:M48) -> 0 | N49: =AVERAGE(N37:N48) ->  | O49: =MAX(O37:O48) -> 0
J51: =+A6 -> 2020 | K51: mg/Nm3 | L51: Monthly 1/2 hourly mean | M51: Monthly 1/2 hourly maximum | N51: Monthly daily mean | O51: Monthly daily maximum
J52: A4 | K52: Jan
K53: Feb
K54: Mar
K55: Apr
K56: May
K57: Jun
K58: Jul
K59: Aug
K60: Sep
K61: Oct
K62: Nov
K63: Dec
K64: Annual | L64: =AVERAGE(L52:L63) ->  | M64: =MAX(M52:M63) -> 0 | N64: =AVERAGE(N52:N63) ->  | O64: =MAX(O52:O63) -> 0
J66: =+A6 -> 2020 | K66: mg/Nm3 | L66: Monthly 1/2 hourly mean | M66: Monthly 1/2 hourly maximum | N66: Monthly daily mean | O66: Monthly daily maximum
J67: A5 | K67: Jan
K68: Feb
K69: Mar
K70: Apr
K71: May
K72: Jun
K73: Jul
K74: Aug
K75: Sep
K76: Oct
K77: Nov
K78: Dec
K79: Annual | L79: =AVERAGE(L67:L78) ->  | M79: =MAX(M67:M78) -> 0 | N79: =AVERAGE(N67:N78) ->  | O79: =MAX(O67:O78) -> 0
